bitfinex/quotes_ETHUSD_20250801
["timestamp","ask_amount","ask_price","bid_price","bid_amount"]
[1754067361897,0.8743,3594.4,3593.3,0.17862363]
[1754067362129,0.8743,3594.3,3593.3,0.17862363]
[1754067362329,4.535,3594.2,3593.4,0.4819]
[1754067362505,4.535,3594.1,3593.5,0.4663]
[1754067362705,4.535,3594.1,3594.0,2.78241513]
[1754067363237,4.535,3594.1,3593.3,0.17862363]
[1754067363558,0.8743,3594.0,3593.3,0.17862363]
[1754067363858,2.78287972,3593.4,3593.3,0.17862363]
[1754067364151,14.5784461,3593.4,3593.3,0.17862363]
[1754067364302,8.11486638,3593.4,3593.0,0.05]
[1754067364502,0.4686,3593.7,3593.0,0.05]
[1754067364703,6.684,3593.9,3593.0,0.05]
[1754067365023,4.563,3593.8,3593.0,0.05]
[1754067365380,2.78264741,3593.7,3593.0,0.05]
[1754067365504,2.78311207,3593.1,3593.0,0.05]
[1754067365871,2.78311207,3593.1,3591.3,3.25080339]
[1754067365872,3.55,3593.0,3590.7,0.4819]
[1754067366003,3.0,3592.3,3590.0,0.4819]
[1754067366204,2.78471947,3591.1,3590.0,0.4819]
[1754067366415,5.0396,3591.0,3589.5,0.4663]
[1754067366718,2.78388686,3592.1,3589.7,3.25204811]
[1754067366719,4.573,3590.9,3589.7,3.25204811]
[1754067366905,1.71538869,3592.0,3589.8,0.9482]
[1754067367105,4.49942491,3592.0,3590.0,2.78551532]
[1754067367318,3.0,3591.8,3590.2,2.78530209]
[1754067367521,0.8743,3591.7,3590.0,0.4819]
[1754067367707,1.24678869,3592.0,3590.3,7.10509978]
[1754067367907,4.619,3592.3,3591.6,2.78427206]
[1754067368103,3.904,3592.2,3591.5,0.4819]
[1754067368311,3.904,3592.2,3590.8,3.0]
[1754067368312,4.622,3592.1,3591.0,0.4819]
[1754067368631,4.622,3592.1,3590.0,2.78548874]
[1754067368632,4.621,3592.0,3589.7,2.78573846]
[1754067368939,0.48430186,3593.1,3589.8,0.5097567]
[1754067368940,5.4963,3591.9,3589.8,0.5097567]
[1754067369154,0.1392,3590.3,3589.8,0.4819]
[1754067369305,0.1392,3590.3,3589.6,0.8663]
[1754067369306,0.1392,3589.9,3589.6,0.4]
[1754067369511,0.1392,3589.8,3589.6,0.4]
[1754067369712,0.1392,3589.8,3589.7,2.78574811]
[1754067369907,4.626,3590.3,3589.6,0.4]
[1754067370109,0.1392,3590.1,3590.0,2.78549943]
[1754067370474,4.624,3591.9,3591.6,2.78425376]
[1754067370634,4.63,3592.1,3591.8,2.7840447]
[1754067370848,4.63,3592.1,3591.2,0.4819]
[1754067370849,7.0927,3592.8,3591.3,2.784507]
[1754067371150,7.0927,3592.8,3589.6,0.4]
[1754067371151,3.0,3592.6,3589.6,0.4]
[1754067371332,0.8743,3592.5,3590.6,3.26691691]
[1754067371533,0.8743,3592.5,3590.7,0.97604972]
[1754067371734,4.635,3592.4,3591.0,7.10509978]
[1754067372050,4.635,3592.4,3591.1,0.4819]
[1754067372051,5.0406,3592.4,3591.1,0.4819]
[1754067372248,0.70927,3592.7,3591.1,3.73285464]
[1754067372545,5.0426,3592.6,3591.1,2.78466208]
[1754067372767,0.4056,3592.5,3591.0,0.4819]
[1754067372926,0.4056,3592.5,3590.8,0.4663]
[1754067372927,0.1392,3591.7,3590.6,0.4819]
[1754067373271,0.1392,3591.2,3590.7,0.1392]
[1754067373421,4.642,3592.1,3590.7,0.1392]
[1754067373759,0.1392,3591.2,3591.1,2.78460217]
[1754067373952,4.642,3592.1,3591.6,2.7842511]
[1754067374116,4.642,3592.1,3591.6,2.78426977]
[1754067374322,0.1392,3591.7,3591.6,2.78426977]
[1754067374722,4.639,3592.2,3592.1,2.78386159]
[1754067374931,4.639,3592.2,3592.0,2.78393857]
[1754067375231,0.70927,3592.7,3591.9,2.78399853]
[1754067375544,0.1392,3592.3,3591.8,0.1392]
[1754067375733,0.1392,3592.3,3591.9,0.4658]
[1754067375920,0.1392,3592.3,3591.5,0.4658]
[1754067376116,0.1392,3592.3,3591.2,3.25087036]
[1754067376117,0.4692,3592.3,3591.2,0.1392]
[1754067376322,0.4575,3592.2,3591.7,2.78415794]
[1754067376566,0.55647,3592.1,3591.7,2.78416961]
[1754067376773,0.9267,3592.0,3590.4,0.4703]
[1754067377070,3.9267,3591.9,3590.0,0.4658]
[1754067377220,1.072317,3591.8,3589.6,0.4]
[1754067377416,2.78440165,3591.5,3590.3,2.78521475]
[1754067377658,4.646,3591.4,3590.5,2.78507436]
[1754067377856,7.43043132,3591.4,3590.5,2.78506844]
[1754067378018,5.48171313,3591.4,3590.0,0.4658]
[1754067378215,4.644,3591.3,3590.1,0.4703]
[1754067378457,4.644,3591.3,3590.2,0.4658]
[1754067378763,0.9267,3591.2,3589.7,0.4658]
[1754067378927,2.78489495,3590.8,3589.7,3.251542]
[1754067379122,0.9267,3590.8,3589.4,0.4658]
[1754067379323,0.55707,3591.1,3589.3,0.17990869]
[1754067379528,2.78534713,3590.3,3589.3,0.17990869]
[1754067379829,5.5737,3590.2,3589.3,0.17990869]
[1754067380056,5.5737,3590.2,3589.5,2.78588523]
[1754067380262,0.9267,3590.1,3589.3,0.17990869]
[1754067380498,0.9267,3590.0,3589.3,0.17990869]
[1754067380775,4.669,3590.0,3589.5,2.78588958]
[1754067380938,0.9267,3590.5,3589.3,0.17990869]
[1754067381136,4.668,3590.4,3589.5,2.78588329]
[1754067381461,3.9267,3590.3,3589.3,0.17990869]
[1754067381846,2.7855269,3590.0,3589.3,0.17990869]
[1754067382059,3.0,3590.1,3589.3,0.17990869]
[1754067382226,2.78574811,3589.7,3589.3,0.17990869]
[1754067382424,5.6117,3589.7,3589.3,0.17990869]
[1754067383437,9.10850873,3589.7,3589.3,0.17990869]
[1754067384626,2.78598094,3589.4,3589.3,0.17990869]
[1754067384828,0.9267,3589.6,3589.3,0.17990869]
[1754067385026,2.78598094,3589.4,3589.3,0.17990869]
[1754067385260,0.9267,3589.4,3589.3,0.17990869]
[1754067385582,3.71268094,3589.4,3589.3,0.17990869]
[1754067385782,0.9267,3589.4,3589.3,0.17990869]
[1754067385971,7.90212857,3589.4,3589.3,0.17990869]
[1754067386283,7.90212857,3589.4,3587.4,2.78749396]
[1754067386284,11.80814763,3589.4,3587.4,0.4658]
[1754067386484,0.55,3589.0,3586.8,0.4658]
[1754067386686,0.55,3589.0,3587.2,2.78763936]
[1754067386687,2.78644672,3588.8,3587.2,2.78763936]
[1754067386865,1.35301467,3588.7,3586.7,0.4703]
[1754067387192,3.0,3589.3,3586.3,8.26468258]
[1754067387193,0.1392,3587.7,3587.2,0.1392]
[1754067387487,0.1392,3587.3,3587.0,2.78778021]
[1754067387660,0.1392,3586.9,3586.8,2.78800044]
[1754067387862,0.1392,3586.9,3586.6,0.4658]
[1754067388066,0.1392,3586.9,3586.4,0.1392]
[1754067388261,0.1392,3586.9,3586.8,2.78800044]
[1754067388463,0.4575,3588.0,3587.2,2.78762221]
[1754067388656,4.677,3587.9,3587.2,2.78766473]
[1754067388983,0.4575,3588.0,3586.8,0.4658]
[1754067388984,0.1392,3587.3,3586.8,0.4658]
[1754067389191,0.1392,3586.9,3586.4,0.43196273]
[1754067389390,0.1392,3587.2,3587.1,2.78776727]
[1754067389577,0.1392,3587.6,3587.5,2.78745644]
[1754067389886,0.1392,3587.6,3587.5,3.25325644]
[1754067390189,0.1392,3588.1,3588.0,2.787068]
[1754067390688,0.1392,3588.1,3588.0,3.252868]
[1754067390866,2.78569437,3589.8,3588.0,3.252868]
[1754067390867,4.674,3589.0,3588.0,1.54010283]
[1754067391067,0.21193936,3590.2,3589.3,2.78605856]
[1754067391264,0.94099823,3592.1,3589.1,2.78621381]
[1754067391265,6.692,3589.4,3589.1,2.78621381]
[1754067391480,0.4692,3590.0,3588.6,0.4658]
[1754067391481,0.1392,3589.0,3588.6,0.4658]
[1754067391679,0.1392,3588.8,3588.4,2.78675732]
[1754067391995,0.9267,3589.4,3588.0,0.02787068]
[1754067392296,0.1392,3588.9,3588.6,2.78658975]
[1754067392590,0.1392,3588.9,3588.1,0.4658]
[1754067392591,4.677,3589.5,3588.2,2.78691265]
[1754067392787,7.46290373,3589.5,3588.3,2.78678893]
[1754067392991,0.1392,3588.5,3588.3,2.78677124]
[1754067393200,0.1392,3588.5,3588.0,0.1392]
[1754067393201,0.1392,3588.5,3588.4,2.78675732]
[1754067393358,0.1392,3588.7,3588.4,0.4658]
[1754067393564,4.674,3589.2,3588.5,3.25697967]
[1754067393756,0.4692,3590.5,3588.7,2.78652436]
[1754067393984,6.695,3590.9,3588.9,0.1392]
[1754067393985,0.1392,3589.4,3588.9,0.1392]
[1754067394192,0.1392,3589.4,3589.3,2.78605856]
[1754067394402,0.1392,3589.6,3589.3,0.4658]
[1754067394607,0.1392,3589.6,3589.5,2.78590332]
[1754067395409,4.674,3590.4,3589.5,3.25170332]
[1754067395700,4.674,3590.4,3589.6,2.78582571]
[1754067395701,0.1392,3589.7,3589.6,2.78582571]
[1754067395901,0.1392,3589.8,3589.7,2.78574811]
[1754067396103,4.67,3590.4,3590.3,2.78528256]
[1754067396401,5.5967,3590.4,3589.5,0.1392]
[1754067396604,5.1392,3590.4,3589.5,0.1392]
[1754067396823,0.1392,3590.0,3588.8,0.4658]
[1754067396976,0.9267,3589.9,3588.4,0.9361]
[1754067397178,3.0,3590.3,3588.4,0.4658]
[1754067397179,5.6007,3589.8,3588.4,0.4658]
[1754067397710,4.673,3589.7,3588.5,2.78667967]
[1754067397881,2.78588441,3589.6,3588.6,2.7865517]
[1754067398080,8.01884041,3589.7,3588.6,2.78660201]
[1754067398290,8.01884041,3589.7,3588.4,0.4658]
[1754067398291,5.23307,3589.7,3588.4,0.4658]
[1754067398607,2.78583907,3589.6,3588.7,2.78651323]
[1754067398780,0.89456091,3589.5,3588.4,0.4658]
[1754067399166,2.78631135,3589.0,3588.1,2.78697864]
[1754067399400,2.7862324,3589.1,3588.2,2.78691033]
[1754067399602,2.7862324,3589.1,3588.0,2.78706401]
[1754067399603,4.665,3589.0,3588.0,2.78699967]
[1754067399897,2.78652236,3588.8,3587.9,0.4658]
[1754067400064,2.78636908,3588.9,3587.9,0.4658]
[1754067400268,2.78667799,3588.6,3587.6,2.78737569]
[1754067400469,2.78667799,3588.6,3587.5,3.25774466]
[1754067400706,0.9267,3588.5,3586.6,2.78815591]
[1754067400925,0.9267,3588.5,3586.5,1.307525]
[1754067400926,2.78707416,3588.0,3586.9,0.4658]
[1754067401130,0.9267,3588.5,3586.9,0.4658]
[1754067401342,3.0,3588.4,3587.5,2.78740411]
[1754067401541,2.78694048,3588.2,3587.3,0.4658]
[1754067401712,2.78701314,3588.1,3587.1,2.78776106]
[1754067401908,2.78701314,3588.1,3586.3,8.26468258]
[1754067401909,0.9267,3588.2,3586.6,0.4658]
[1754067402111,5.78693507,3588.2,3586.6,0.4658]
[1754067402342,2.78719001,3587.9,3586.6,3.25395496]
[1754067402505,0.671389,3587.9,3586.6,1.14493754]
[1754067402706,5.1595,3587.8,3586.6,0.02788155]
[1754067402944,0.4692,3587.7,3586.3,0.4658]
[1754067403143,4.703,3587.6,3586.5,7.15377959]
[1754067403319,5.1792,3587.7,3586.6,0.4658]
[1754067403522,4.71,3587.7,3587.0,2.78781682]
[1754067403720,5.6502,3587.7,3586.6,0.4658]
[1754067403919,0.4575,3587.6,3586.1,0.4658]
[1754067404207,0.4692,3587.5,3586.0,2.78856352]
[1754067404443,0.4575,3587.4,3586.0,0.02788622]
[1754067404648,0.4575,3587.4,3586.5,2.78821935]
[1754067404846,0.4575,3587.4,3586.0,0.4658]
[1754067404847,4.707,3587.3,3586.4,2.78829288]
[1754067405149,4.707,3587.3,3586.5,0.4658]
[1754067405462,4.707,3587.3,3586.1,2.78854465]
[1754067405667,7.95646726,3587.3,3586.1,2.78854465]
[1754067405869,5.1688,3587.3,3586.5,2.78817155]
[1754067406073,5.1688,3587.3,3585.9,0.482]
[1754067406284,1.04675,3587.2,3586.0,2.78862242]
[1754067406481,2.78784499,3587.0,3586.1,2.78853113]
[1754067406766,2.78795193,3586.9,3585.7,2.78885573]
[1754067406973,0.1392,3586.2,3585.8,2.78877795]
[1754067407271,0.1392,3586.2,3585.7,0.1392]
[1754067407272,0.1392,3586.2,3586.0,2.78856893]
[1754067407466,0.1392,3585.8,3585.7,2.78885573]
[1754067407672,0.1392,3585.8,3585.4,0.482]
[1754067407977,2.78932247,3585.1,3583.5,2.79055994]
[1754067408211,2.78932247,3585.1,3583.4,0.482]
[1754067408212,12.00567713,3585.1,3583.7,2.7903987]
[1754067408367,12.00567713,3585.1,3583.4,0.482]
[1754067408558,12.00567713,3585.1,3583.9,2.79024016]
[1754067408761,12.00567713,3585.1,3583.4,0.482]
[1754067408762,12.00567713,3585.1,3583.3,2.79070099]
[1754067409075,12.00567713,3585.1,3583.0,0.004]
[1754067409076,12.55567713,3585.1,3583.0,0.004]
[1754067409287,1.50135466,3585.1,3583.0,0.004]
[1754067409460,3.9435,3585.0,3583.0,0.004]
[1754067409660,3.0,3584.8,3583.1,0.482]
[1754067409860,0.9435,3584.7,3583.0,0.004]
[1754067410061,4.739,3584.6,3583.9,2.79022843]
[1754067410262,4.739,3584.6,3583.5,0.482]
[1754067410463,0.9435,3585.3,3583.6,3.1460318]
[1754067410686,4.742,3585.4,3583.7,0.928]
[1754067410888,4.742,3585.4,3585.3,2.78916687]
[1754067411386,0.4618,3586.3,3585.1,2.78929013]
[1754067411584,5.2018,3586.3,3585.2,2.78924467]
[1754067411752,5.72198,3586.3,3585.1,0.482]
[1754067411949,5.72198,3586.3,3586.0,2.78860841]
[1754067412151,0.4618,3587.0,3585.6,0.482]
[1754067412354,3.482,3589.2,3584.9,8.29245692]
[1754067412355,0.4618,3587.8,3585.7,0.95588855]
[1754067412577,0.4618,3587.8,3586.9,2.78785828]
[1754067412790,0.4618,3587.8,3587.6,2.78735417]
[1754067412990,4.746,3588.1,3585.6,13.03445692]
[1754067412991,4.746,3588.1,3586.8,0.482]
[1754067413163,4.746,3588.1,3587.4,2.78750067]
[1754067413362,0.837665,3588.7,3587.3,0.482]
[1754067413594,4.745,3588.8,3587.3,0.482]
[1754067413778,4.745,3588.8,3587.5,2.78745644]
[1754067413986,4.745,3588.8,3587.6,0.482]
[1754067414195,0.4817,3589.0,3586.3,0.55]
[1754067414374,0.9435,3588.7,3586.9,0.482]
[1754067414554,1.51215,3588.6,3586.4,0.482]
[1754067414900,0.9435,3588.5,3586.4,0.482]
[1754067415199,3.9435,3588.4,3586.9,2.78786602]
[1754067415517,2.364715,3588.3,3586.7,2.78802332]
[1754067415730,2.364715,3588.3,3585.2,3.62690461]
[1754067415731,2.78732509,3587.7,3585.8,2.7887423]
[1754067415862,4.742,3587.6,3585.8,3.0]
[1754067416194,5.6855,3587.5,3586.5,2.78821645]
[1754067416495,0.84729487,3587.4,3585.6,2.78893351]
[1754067416672,0.84729487,3587.4,3585.8,2.78877795]
[1754067416868,4.737,3587.3,3585.9,0.482]
[1754067417198,4.737,3587.3,3584.8,8.29245692]
[1754067417199,0.9435,3587.2,3584.8,8.29245692]
[1754067417362,3.73126839,3587.1,3585.3,0.482]
[1754067417559,3.84682684,3587.0,3585.7,2.78884089]
[1754067417763,0.9435,3586.9,3585.8,2.78870459]
[1754067417987,0.1392,3585.9,3585.7,2.78883517]
[1754067418194,0.1392,3585.7,3585.4,2.78908515]
[1754067418387,0.1392,3585.7,3585.1,0.1392]
[1754067419296,0.1392,3585.7,3585.3,2.78909249]
[1754067419494,0.1392,3585.7,3585.4,2.78907665]
[1754067419693,0.1392,3585.6,3585.4,2.78907665]
[1754067419893,0.1392,3585.6,3585.1,0.1392]
[1754067420093,2.78915011,3585.4,3585.1,0.1392]
[1754067420297,1.079709,3585.3,3585.1,0.1392]
[1754067420595,4.73,3586.0,3584.9,2.789457]
[1754067420596,0.1392,3585.2,3584.9,2.789457]
[1754067420795,0.1392,3585.2,3584.9,0.482]
[1754067420997,0.1392,3585.2,3584.7,0.1392]
[1754067421158,0.1392,3584.7,3584.4,0.482]
[1754067421360,0.1392,3584.7,3584.6,2.78971154]
[1754067421560,3.33776427,3587.2,3584.6,0.41817115]
[1754067421561,0.1392,3585.1,3584.6,0.41817115]
[1754067421816,0.1392,3585.2,3585.1,2.78932247]
[1754067421990,2.78872109,3585.9,3585.1,0.482]
[1754067422197,0.1392,3585.2,3584.8,2.78954406]
[1754067422401,0.1392,3585.2,3584.7,0.1392]
[1754067422694,0.1392,3585.2,3584.9,2.78941563]
[1754067422909,0.1392,3585.2,3585.1,2.78932247]
[1754067423232,0.9435,3585.1,3584.3,0.1392]
[1754067423519,0.1392,3585.0,3584.3,0.1392]
[1754067423809,0.1392,3584.8,3584.7,2.78963372]
[1754067423965,0.1392,3585.1,3584.7,0.928]
[1754067424165,0.1392,3585.1,3584.8,0.482]
[1754067424415,2.78892344,3585.7,3584.3,0.482]
[1754067424416,0.9435,3585.7,3584.3,0.482]
[1754067424617,2.78989372,3584.4,3583.7,0.928]
[1754067424775,0.9435,3585.0,3583.3,0.004]
[1754067424776,2.79017971,3584.0,3583.6,0.1392]
[1754067424974,0.9435,3585.0,3581.1,0.18247881]
[1754067424975,30.0,3583.8,3581.1,0.18247881]
[1754067425213,0.75473797,3583.9,3581.1,0.18247881]
[1754067425214,2.79091692,3583.1,3581.1,0.18247881]
[1754067425416,1.665,3582.6,3581.1,0.18247881]
[1754067425618,2.7923601,3581.2,3581.1,0.18247881]
[1754067425817,0.4618,3581.8,3581.1,0.18247881]
[1754067426001,4.773,3582.8,3581.5,2.79205655]
[1754067426316,0.9435,3582.7,3581.1,0.66447881]
[1754067426673,0.9435,3582.9,3581.2,0.482]
[1754067426879,0.9435,3582.9,3581.3,0.02792282]
[1754067427110,0.9435,3582.9,3581.2,0.482]
[1754067427316,0.4618,3583.6,3581.6,3.0]
[1754067427499,6.704,3585.0,3582.5,8.280806]
[1754067427500,0.4618,3584.9,3582.5,8.280806]
[1754067427695,0.4618,3585.6,3582.7,5.776258]
[1754067427914,0.4817,3585.3,3582.9,3.0]
[1754067428117,0.4618,3585.2,3583.8,2.79031679]
[1754067428303,0.4618,3585.2,3583.2,2.79079009]
[1754067428477,2.78954152,3584.9,3583.3,2.81860439]
[1754067428674,0.9435,3584.8,3583.7,2.79034923]
[1754067429019,0.9435,3584.7,3582.8,4.898]
[1754067429201,0.9435,3584.6,3582.7,4.897]
[1754067429406,0.9435,3584.6,3584.2,2.79000131]
[1754067429407,0.4618,3584.6,3584.2,2.79000131]
[1754067429609,0.4618,3584.6,3582.8,0.95591113]
[1754067429610,0.67391138,3585.0,3583.3,0.482]
[1754067429923,0.9435,3584.9,3582.5,3.0]
[1754067430107,0.9435,3584.8,3582.6,0.482]
[1754067430275,0.9435,3584.7,3582.6,0.482]
[1754067430477,2.79088536,3583.1,3582.0,2.79166016]
[1754067430769,0.27908854,3583.0,3581.9,0.482]
[1754067430908,3.0,3583.4,3581.3,0.482]
[1754067431108,0.9435,3582.9,3581.0,2.79243953]
[1754067431279,2.79182679,3581.9,3580.6,0.482]
[1754067431479,2.79189234,3581.8,3580.7,2.79273447]
[1754067431682,1.11451362,3581.8,3580.7,2.79268326]
[1754067431903,0.9435,3581.7,3579.9,0.482]
[1754067432181,0.4618,3582.2,3580.3,0.482]
[1754067432478,0.4618,3582.2,3580.8,0.482]
[1754067432711,0.4618,3582.2,3581.2,2.7923601]
[1754067432880,1.01806316,3583.2,3581.3,0.482]
[1754067433084,1.01806316,3583.2,3582.1,2.79164696]
[1754067433303,2.37611948,3583.2,3581.9,0.482]
[1754067433706,1.01806316,3583.2,3583.1,2.7908794]
[1754067433906,1.01806316,3583.2,3583.1,3.2728794]
[1754067434220,7.1877,3585.0,3583.2,2.79080151]
[1754067434424,0.4817,3585.0,3583.1,0.928]
[1754067434607,0.83508393,3584.9,3583.1,0.928]
[1754067434811,2.79009048,3584.2,3583.0,2.79090507]
[1754067435124,0.4618,3584.3,3583.5,2.79051845]
[1754067435608,0.1392,3584.5,3584.0,0.1392]
[1754067435783,0.1392,3584.5,3584.4,2.7898672]
[1754067435988,0.1392,3584.8,3584.6,2.78963597]
[1754067436216,0.1392,3584.5,3584.4,2.7898672]
[1754067436588,0.1392,3584.5,3584.4,3.2542672]
[1754067437528,0.1392,3584.5,3584.4,2.7898672]
[1754067437921,0.1392,3584.5,3584.0,0.1392]
[1754067438245,0.4563,3585.1,3584.2,2.78996177]
[1754067438422,2.788694,3586.0,3583.5,2.79050532]
[1754067438423,0.1392,3584.1,3583.5,2.92969821]
[1754067438717,0.1392,3584.1,3584.0,2.79017857]
[1754067439092,3.4563,3585.5,3584.5,2.78978849]
[1754067439292,0.4563,3585.5,3584.0,0.4644]
[1754067439508,4.925,3586.0,3585.0,2.78935345]
[1754067439711,3.88613,3585.9,3584.9,2.78942022]
[1754067439921,3.0,3585.7,3584.8,2.78953754]
[1754067440108,3.0,3585.7,3584.9,2.78947213]
[1754067440309,0.1392,3584.8,3584.7,2.78963372]
[1754067440628,0.4563,3585.4,3584.2,0.4644]
[1754067440829,0.9363,3585.4,3584.2,0.4644]
[1754067441328,2.78924467,3585.2,3583.1,0.4644]
[1754067441623,3.72564354,3585.1,3583.1,0.4644]
[1754067441800,9.59922684,3585.0,3583.2,2.79080151]
[1754067442002,9.59922684,3585.0,3583.1,0.4644]
[1754067442003,2.7896036,3584.8,3583.1,0.4644]
[1754067442331,0.9363,3584.7,3583.1,3.25525649]
[1754067442629,0.4563,3584.7,3584.2,2.78997599]
[1754067442989,0.4563,3584.7,3583.3,2.79072363]
[1754067442990,0.48,3584.7,3583.3,2.79072363]
[1754067443195,0.78325027,3584.6,3583.9,2.79020979]
[1754067443395,0.78325027,3584.6,3583.9,2.79025362]
[1754067443602,0.78325027,3584.6,3583.2,0.4644]
[1754067443806,0.4563,3584.6,3584.0,2.79012543]
[1754067444221,0.4563,3584.6,3583.9,2.79023741]
[1754067444834,0.4563,3584.6,3583.2,0.4644]
[1754067445191,0.4563,3584.6,3583.9,2.79024303]
[1754067445395,0.4563,3584.6,3583.2,0.4644]
[1754067445708,0.4563,3584.6,3584.1,2.7900509]
[1754067445904,0.9363,3584.5,3583.0,2.79095729]
[1754067446104,0.4563,3584.5,3583.1,0.49230879]
[1754067446327,3.0,3584.9,3583.3,2.79068153]
[1754067446493,0.9363,3585.0,3583.4,0.49230645]
[1754067446694,0.9363,3585.0,3584.2,2.78999894]
[1754067446891,0.4563,3585.0,3583.9,0.4644]
[1754067447097,2.78978165,3584.6,3583.4,0.4644]
[1754067447394,3.0,3585.1,3583.4,0.4644]
[1754067447596,4.907,3585.1,3584.6,2.78968176]
[1754067447849,2.6133,3585.0,3583.3,0.4475]
[1754067448051,1.677,3584.8,3583.3,2.79067441]
[1754067448195,1.677,3584.8,3583.2,0.4644]
[1754067448196,1.677,3584.6,3583.2,0.4644]
[1754067448539,2.78971154,3584.6,3583.4,2.79064575]
[1754067448701,2.78971154,3584.6,3582.7,0.4644]
[1754067448702,1.30890115,3584.5,3582.7,0.4644]
[1754067448901,1.30890115,3584.5,3582.8,0.49231113]
[1754067448902,0.82890115,3584.5,3582.8,0.49231113]
[1754067449239,0.4563,3584.5,3582.9,0.02791035]
[1754067449395,2.79007456,3584.2,3583.2,2.79073338]
[1754067449607,2.79007456,3584.2,3582.8,0.4644]
[1754067449820,3.26999136,3584.3,3582.8,0.4644]
[1754067450032,0.48,3584.3,3582.8,0.4644]
[1754067450365,0.4563,3584.5,3582.8,0.4644]
[1754067450543,2.79066357,3583.4,3582.5,2.79129955]
[1754067450702,0.1392,3582.9,3582.4,0.1392]
[1754067450907,0.1392,3582.9,3582.4,2.79136275]
[1754067451135,0.1392,3582.9,3582.4,0.4644]
[1754067451340,2.79073914,3583.3,3582.1,0.004]
[1754067451341,2.79072363,3583.3,3582.1,0.004]
[1754067451521,0.1392,3582.6,3582.1,0.004]
[1754067451717,0.1392,3582.4,3582.1,0.004]
[1754067451919,2.79043324,3583.7,3582.7,2.79113315]
[1754067452124,0.1392,3582.8,3582.7,2.79113315]
[1754067452324,0.1392,3582.8,3582.7,3.81377444]
[1754067452506,5.79005286,3584.2,3583.3,2.79070199]
[1754067452707,2.79005286,3584.2,3583.4,2.7906311]
[1754067452912,0.1392,3583.3,3583.2,2.79080151]
[1754067453111,0.1392,3583.3,3583.2,0.4644]
[1754067453342,0.1392,3583.3,3583.2,3.25520151]
[1754067453522,0.1392,3583.3,3583.2,2.79080151]
[1754067453721,0.1392,3583.3,3583.1,2.79085438]
[1754067453927,0.1392,3583.3,3583.2,2.79080151]
[1754067454453,0.1392,3583.8,3583.2,1.49797717]
[1754067454748,0.1392,3583.5,3583.0,2.79092343]
[1754067454912,0.1392,3583.5,3582.7,0.4644]
[1754067454913,0.1392,3583.5,3583.4,2.79064575]
[1754067455111,0.4563,3584.3,3583.4,0.4644]
[1754067455336,0.1392,3583.8,3583.7,2.79039261]
[1754067455834,0.1392,3583.8,3583.7,3.70231214]
[1754067456034,0.4563,3585.3,3583.9,2.79020785]
[1754067456237,0.4563,3585.3,3584.5,2.78975298]
[1754067456435,0.4563,3585.3,3584.1,0.4644]
[1754067456638,0.4563,3585.3,3583.7,1.096788]
[1754067456639,0.48,3585.2,3582.2,2.79153212]
[1754067456810,0.4563,3585.1,3582.8,0.4644]
[1754067457017,0.26133,3585.0,3583.0,2.79095729]
[1754067457226,0.26133,3585.0,3583.8,2.79030461]
[1754067457451,3.05074263,3585.0,3584.1,2.79008006]
[1754067457651,3.05074263,3585.0,3583.2,0.4644]
[1754067457652,0.9363,3584.9,3583.2,0.4644]
[1754067457853,0.9363,3584.8,3583.2,0.4644]
[1754067458039,2.79011754,3584.1,3583.2,3.25519983]
[1754067458240,0.4563,3584.3,3583.4,2.79059083]
[1754067458441,0.4563,3584.3,3583.3,2.79072363]
[1754067458755,2.79011923,3584.1,3583.2,3.25517417]
[1754067458951,2.79003097,3584.2,3583.2,3.25517417]
[1754067459151,3.61887467,3584.3,3583.4,2.79057234]
[1754067459354,0.37261746,3584.3,3583.2,0.4644]
[1754067459557,2.78975914,3584.6,3583.2,0.4644]
[1754067459773,0.48,3584.7,3583.2,0.4644]
[1754067459774,0.48,3584.7,3583.9,2.79024733]
[1754067459916,2.78983767,3584.5,3583.2,0.4644]
[1754067460121,3.26965968,3584.7,3583.2,0.4644]
[1754067460321,0.48,3584.7,3583.2,0.4644]
[1754067460524,3.37165983,3584.6,3583.7,2.79036593]
[1754067460718,2.78994233,3584.4,3583.2,0.4644]
[1754067460922,0.4563,3584.5,3584.1,2.79006284]
[1754067461137,0.58193,3584.6,3584.1,2.79006284]
[1754067461333,0.4563,3585.0,3583.6,0.4475]
[1754067461534,2.78932275,3585.1,3584.2,3.25439072]
[1754067461733,0.9363,3585.0,3583.7,0.4644]
[1754067462155,0.4563,3585.0,3584.6,2.78968736]
[1754067462357,0.4563,3585.0,3583.9,3.25458939]
[1754067462541,0.4563,3585.0,3583.9,0.4644]
[1754067462542,0.4563,3584.9,3583.9,0.4644]
[1754067462743,0.4563,3584.9,3584.0,2.79016051]
[1754067463062,2.78919826,3585.3,3584.2,2.78995739]
[1754067463362,0.9363,3585.2,3583.5,0.4644]
[1754067463660,4.866,3585.1,3583.5,0.4644]
[1754067463832,0.5346,3585.0,3583.5,0.4644]
[1754067464158,2.78962655,3584.8,3583.6,2.7904196]
[1754067464345,0.9363,3584.9,3584.1,2.79009724]
[1754067464524,2.78960537,3584.8,3583.9,2.79023378]
[1754067464723,0.70499083,3584.7,3583.9,2.79023378]
[1754067464926,0.70499083,3584.7,3583.9,2.79022404]
[1754067465154,2.78955677,3584.8,3583.5,0.4644]
[1754067465332,2.78976104,3584.6,3583.5,3.25493108]
[1754067465534,0.5346,3585.0,3584.0,2.79011464]
[1754067465739,3.24920842,3585.0,3583.6,0.4828]
[1754067465933,4.86,3585.3,3583.3,2.79068603]
[1754067465934,0.9574,3584.9,3583.5,2.79051888]
[1754067466134,0.9574,3584.9,3583.6,2.79047424]
[1754067466357,2.78983341,3584.5,3583.6,2.79047424]
[1754067466563,0.4598,3584.4,3583.6,2.7904775]
[1754067466769,0.37468359,3584.8,3584.0,2.79016396]
[1754067467061,0.1392,3583.8,3583.2,0.4828]
[1754067467366,0.1392,3583.8,3583.7,2.79041214]